[Event "*** Titled Tuesday Blitz"]
[Site "Chess.com"]
[Date "2021.02.16"]
[Round "11"]
[White "Zubrrr"]
[Black "MFBerna"]
[Result "1-0"]
[WhiteElo "2655"]
[BlackElo "2507"]
[TimeControl "180+1"]
[EndTime "12:10:42 PST"]
[Termination "Zubrrr won by resignation"]

1. c4 {[%clk 0:03:00.9]} 1... c6 {[%clk 0:02:55.3]} 2. b3 {[%clk 0:02:57.2]}
2... d5 {[%clk 0:02:56.2]} 3. Bb2 {[%clk 0:02:57.6]} 3... Nf6 {[%clk 0:02:56.1]}
4. Nf3 {[%clk 0:02:57.2]} 4... Bf5 {[%clk 0:02:56.2]} 5. d3 {[%clk 0:02:57.4]}
5... e6 {[%clk 0:02:56.1]} 6. Nbd2 {[%clk 0:02:57.7]} 6... Be7 {[%clk
0:02:55.1]} 7. g3 {[%clk 0:02:57.1]} 7... Nbd7 {[%clk 0:02:54.9]} 8. Bg2 {[%clk
0:02:57.5]} 8... O-O {[%clk 0:02:55.5]} 9. O-O {[%clk 0:02:57.2]} 9... a5 {[%clk
0:02:55.7]} 10. Nh4 {[%clk 0:02:57.2]} 10... Bg6 {[%clk 0:02:54.2]} 11. Nxg6
{[%clk 0:02:56.7]} 11... hxg6 {[%clk 0:02:55.1]} 12. a3 {[%clk 0:02:52.2]} 12...
Ne8 {[%clk 0:02:50.6]} 13. Qc2 {[%clk 0:02:48.5]} 13... Bf6 {[%clk 0:02:50.7]}
14. d4 {[%clk 0:02:49]} 14... Nd6 {[%clk 0:02:46.8]} 15. Rad1 {[%clk 0:02:44]}
15... Qe7 {[%clk 0:02:44]} 16. Rfe1 {[%clk 0:02:39.4]} 16... Rfc8 {[%clk
0:02:42.6]} 17. e4 {[%clk 0:02:32.3]} 17... dxe4 {[%clk 0:02:39.1]} 18. c5
{[%clk 0:02:20.9]} 18... Nf5 {[%clk 0:02:27.8]} 19. Nxe4 {[%clk 0:02:21]} 19...
Rd8 {[%clk 0:02:23.5]} 20. Rd3 {[%clk 0:02:11.1]} 20... Nf8 {[%clk 0:02:15.8]}
21. Nxf6+ {[%clk 0:02:07.2]} 21... gxf6 {[%clk 0:02:12.1]} 22. d5 {[%clk
0:02:07.4]} 22... cxd5 {[%clk 0:02:11.8]} 23. Bxd5 {[%clk 0:01:59.8]} 23... Rd7
{[%clk 0:01:52.3]} 24. Be4 {[%clk 0:01:35.8]} 24... Rad8 {[%clk 0:01:45.7]} 25.
b4 {[%clk 0:01:19.7]} 25... Rxd3 {[%clk 0:01:34.9]} 26. Bxd3 {[%clk 0:01:19.7]}
26... Nd4 {[%clk 0:01:30.1]} 27. Bxd4 {[%clk 0:01:03]} 27... Rxd4 {[%clk
0:01:31]} 28. b5 {[%clk 0:00:58]} 28... Qd8 {[%clk 0:01:22.2]} 29. Be4 {[%clk
0:00:55.2]} 29... Rd2 {[%clk 0:01:15.6]} 30. Qc3 {[%clk 0:00:52.4]} 30... Rd7
{[%clk 0:01:03.7]} 31. c6 {[%clk 0:00:48.7]} 31... bxc6 {[%clk 0:01:04.4]} 32.
bxc6 {[%clk 0:00:49.3]} 32... Ra7 {[%clk 0:00:57.3]} 33. Rc1 {[%clk 0:00:48.4]}
33... Qc7 {[%clk 0:00:48.2]} 34. Qxf6 {[%clk 0:00:48.1]} 34... Nh7 {[%clk
0:00:48.1]} 35. Qd4 {[%clk 0:00:41]} 35... Ng5 {[%clk 0:00:46.5]} 36. Bg2 {[%clk
0:00:41]} 36... Ra8 {[%clk 0:00:38.3]} 37. Qf4 {[%clk 0:00:39.8]} 37... Qe7
{[%clk 0:00:29.8]} 38. h4 {[%clk 0:00:33.4]} 38... Nh7 {[%clk 0:00:30.1]} 39. c7
{[%clk 0:00:33.3]} 39... Rc8 {[%clk 0:00:30.6]} 40. Bb7 {[%clk 0:00:33.3]} 40...
e5 {[%clk 0:00:29.6]} 41. Qc4 {[%clk 0:00:30.3]} 41... Rxc7 {[%clk 0:00:21.6]}
42. Qxc7 {[%clk 0:00:30.3]} 42... Qxa3 {[%clk 0:00:22.5]} 43. Qb8+ {[%clk
0:00:21.1]} 43... Nf8 {[%clk 0:00:14.4]} 44. Rc8 {[%clk 0:00:20.9]} 44... Kg7
{[%clk 0:00:12.7]} 45. Qxe5+ {[%clk 0:00:20.4]} 45... Kh7 {[%clk 0:00:11]} 46.
Bd5 {[%clk 0:00:19.1]} 46... Qc1+ {[%clk 0:00:03.8]} 47. Rxc1 {[%clk 0:00:18.3]}
1-0

[Event "*** Titled Tuesday Blitz"]
[Site "Chess.com"]
[Date "2021.02.16"]
[Round "11"]
[White "Deepweb2020"]
[Black "harlem4brew"]
[Result "0-1"]
[WhiteElo "2489"]
[BlackElo "2325"]
[TimeControl "180+1"]
[EndTime "12:10:42 PST"]
[Termination "harlem4brew won by checkmate"]

1. e4 {[%clk 0:03:00.9]} 1... e6 {[%clk 0:03:00.2]} 2. d4 {[%clk 0:02:58.8]}
2... d5 {[%clk 0:03:00.4]} 3. Nd2 {[%clk 0:02:57]} 3... dxe4 {[%clk 0:02:59.5]}
4. Nxe4 {[%clk 0:02:57.2]} 4... Nf6 {[%clk 0:03:00]} 5. Bg5 {[%clk 0:02:57.5]}
5... Be7 {[%clk 0:02:59.9]} 6. Ng3 {[%clk 0:02:57.9]} 6... h6 {[%clk 0:02:57.3]}
7. Be3 {[%clk 0:02:57.4]} 7... O-O {[%clk 0:02:57.4]} 8. Bd3 {[%clk 0:02:56.9]}
8... b6 {[%clk 0:02:57.5]} 9. Qf3 {[%clk 0:02:56.1]} 9... Qd5 {[%clk 0:02:54]}
10. c4 {[%clk 0:02:53.2]} 10... Qxf3 {[%clk 0:02:53.1]} 11. Nxf3 {[%clk
0:02:54.1]} 11... Bb7 {[%clk 0:02:53.9]} 12. O-O-O {[%clk 0:02:53.7]} 12... Ng4
{[%clk 0:02:51.8]} 13. Rhe1 {[%clk 0:02:51.6]} 13... Nxe3 {[%clk 0:02:50]} 14.
fxe3 {[%clk 0:02:52.5]} 14... Nd7 {[%clk 0:02:50.3]} 15. b3 {[%clk 0:02:50.8]}
15... Rad8 {[%clk 0:02:46.9]} 16. e4 {[%clk 0:02:49.4]} 16... e5 {[%clk
0:02:42.8]} 17. Nf5 {[%clk 0:02:42.7]} 17... Bf6 {[%clk 0:02:40.7]} 18. d5
{[%clk 0:02:41.2]} 18... a5 {[%clk 0:02:39]} 19. a3 {[%clk 0:02:40.9]} 19... Ba6
{[%clk 0:02:35.5]} 20. Kb2 {[%clk 0:02:37]} 20... Nc5 {[%clk 0:02:29.4]} 21. Bf1
{[%clk 0:02:35.7]} 21... Kh7 {[%clk 0:02:25.9]} 22. b4 {[%clk 0:02:29.6]} 22...
Nd7 {[%clk 0:02:23.2]} 23. d6 {[%clk 0:02:09.6]} 23... c5 {[%clk 0:02:13.6]} 24.
b5 {[%clk 0:02:05.8]} 24... Bc8 {[%clk 0:02:11.9]} 25. Ne7 {[%clk 0:02:06.6]}
25... Bb7 {[%clk 0:02:08.3]} 26. Nc6 {[%clk 0:02:06.5]} 26... Rc8 {[%clk
0:02:06.9]} 27. Ne7 {[%clk 0:02:05.8]} 27... Rcd8 {[%clk 0:02:06.5]} 28. h3
{[%clk 0:02:05.4]} 28... g6 {[%clk 0:02:03.8]} 29. Nd2 {[%clk 0:02:03.1]} 29...
Rfe8 {[%clk 0:01:58.8]} 30. Nd5 {[%clk 0:01:44.9]} 30... Bg7 {[%clk 0:01:57]}
31. Nb1 {[%clk 0:01:42.7]} 31... Re6 {[%clk 0:01:54.5]} 32. Nc7 {[%clk
0:01:37.7]} 32... Rf6 {[%clk 0:01:53.5]} 33. Nc3 {[%clk 0:01:35.3]} 33... Bf8
{[%clk 0:01:52.9]} 34. Be2 {[%clk 0:01:06.6]} 34... Bxd6 {[%clk 0:01:43.5]} 35.
N7d5 {[%clk 0:01:03.9]} 35... Rf2 {[%clk 0:01:43.2]} 36. Ne3 {[%clk 0:00:56.3]}
36... Be7 {[%clk 0:01:38.5]} 37. Ng4 {[%clk 0:00:48.8]} 37... Rxg2 {[%clk
0:01:30.4]} 38. Rd2 {[%clk 0:00:48.8]} 38... Bg5 {[%clk 0:01:23.1]} 39. Rd6
{[%clk 0:00:46.7]} 39... h5 {[%clk 0:01:21.7]} 40. Red1 {[%clk 0:00:39]} 40...
hxg4 {[%clk 0:01:20.1]} 41. hxg4 {[%clk 0:00:39.6]} 41... Bc8 {[%clk 0:01:18.4]}
42. Kb3 {[%clk 0:00:37.2]} 42... Be3 {[%clk 0:01:15.3]} 43. Bf1 {[%clk 0:00:33]}
43... Rg3 {[%clk 0:01:08.1]} 44. Nd5 {[%clk 0:00:28.8]} 44... Bd4+ {[%clk
0:01:07.2]} 45. Ka4 {[%clk 0:00:28.7]} 45... Kg7 {[%clk 0:00:58.8]} 46. Nxb6
{[%clk 0:00:20.3]} 46... Nxb6+ {[%clk 0:00:57.6]} 47. Rxb6 {[%clk 0:00:21.2]}
47... Bxg4 {[%clk 0:00:57.5]} 48. Rb1 {[%clk 0:00:20.1]} 48... Ra8 {[%clk
0:00:52.3]} 49. Ra6 {[%clk 0:00:18.7]} 49... Rb8 {[%clk 0:00:42.6]} 50. b6
{[%clk 0:00:18.6]} 50... Bd7+ {[%clk 0:00:41.3]} 51. Rb5 {[%clk 0:00:12.5]}
51... Bb2 {[%clk 0:00:40.3]} 52. Kxa5 {[%clk 0:00:01.6]} 52... Rxa3# {[%clk
0:00:40.1]} 0-1

[Event "*** Titled Tuesday Blitz"]
[Site "Chess.com"]
[Date "2021.02.16"]
[Round "11"]
[White "Genghis_K"]
[Black "ChessQueen"]
[Result "1-0"]
[WhiteElo "2921"]
[BlackElo "2748"]
[TimeControl "180+1"]
[EndTime "12:10:52 PST"]
[Termination "Genghis_K won by resignation"]

1. e4 {[%clk 0:02:58.6]} 1... e5 {[%clk 0:02:58.5]} 2. Nf3 {[%clk 0:02:58.8]}
2... Nf6 {[%clk 0:02:58.8]} 3. Nc3 {[%clk 0:02:58.4]} 3... Nc6 {[%clk
0:02:58.7]} 4. d4 {[%clk 0:02:56.2]} 4... exd4 {[%clk 0:02:58.4]} 5. Nxd4 {[%clk
0:02:57.1]} 5... Bb4 {[%clk 0:02:58.6]} 6. Nxc6 {[%clk 0:02:57.5]} 6... bxc6
{[%clk 0:02:59.2]} 7. Bd3 {[%clk 0:02:58.1]} 7... O-O {[%clk 0:02:58.6]} 8. O-O
{[%clk 0:02:57.9]} 8... d5 {[%clk 0:02:59]} 9. Bd2 {[%clk 0:02:58.2]} 9... Rb8
{[%clk 0:02:56.7]} 10. Re1 {[%clk 0:02:49.4]} 10... Ng4 {[%clk 0:02:56.6]} 11.
h3 {[%clk 0:02:45]} 11... Ne5 {[%clk 0:02:54.1]} 12. Bf1 {[%clk 0:02:41.3]}
12... d4 {[%clk 0:02:13.5]} 13. Na4 {[%clk 0:02:33]} 13... c5 {[%clk 0:02:03.2]}
14. c3 {[%clk 0:02:12.7]} 14... dxc3 {[%clk 0:01:57.8]} 15. bxc3 {[%clk
0:02:07.3]} 15... Ba3 {[%clk 0:01:56]} 16. Be3 {[%clk 0:01:58.7]} 16... Qe7
{[%clk 0:01:52.6]} 17. f4 {[%clk 0:01:49.5]} 17... Nd7 {[%clk 0:01:46.5]} 18.
Bf2 {[%clk 0:00:55.4]} 18... Rd8 {[%clk 0:01:37.7]} 19. Qf3 {[%clk 0:00:51.4]}
19... Nb6 {[%clk 0:01:35]} 20. c4 {[%clk 0:00:42.7]} 20... Bb4 {[%clk
0:01:22.8]} 21. Nc3 {[%clk 0:00:41.4]} 21... c6 {[%clk 0:01:20.9]} 22. e5 {[%clk
0:00:34.2]} 22... f5 {[%clk 0:01:05.4]} 23. exf6 {[%clk 0:00:30.7]} 23... Qxf6
{[%clk 0:01:05.3]} 24. Ne4 {[%clk 0:00:31.1]} 24... Qf8 {[%clk 0:01:04.1]} 25.
Red1 {[%clk 0:00:29.5]} 25... Bf5 {[%clk 0:00:44.3]} 26. a3 {[%clk 0:00:23]}
26... Bxe4 {[%clk 0:00:40.5]} 27. Qxe4 {[%clk 0:00:23.9]} 27... Bc3 {[%clk
0:00:40.6]} 28. Rac1 {[%clk 0:00:22.6]} 28... Bd4 {[%clk 0:00:39.2]} 29. Bxd4
{[%clk 0:00:21.1]} 29... cxd4 {[%clk 0:00:39.3]} 30. c5 {[%clk 0:00:18.1]} 30...
Nd5 {[%clk 0:00:36]} 31. Rxd4 {[%clk 0:00:16.8]} 31... Kh8 {[%clk 0:00:27.3]}
32. Bc4 {[%clk 0:00:16.1]} 32... Re8 {[%clk 0:00:23.6]} 33. Qf3 {[%clk
0:00:13.4]} 33... Qf6 {[%clk 0:00:24]} 34. Rd2 {[%clk 0:00:07.8]} 34... Nxf4
{[%clk 0:00:15.3]} 35. Rf1 {[%clk 0:00:07.7]} 35... Ne6 {[%clk 0:00:07.7]} 36.
Qxf6 {[%clk 0:00:05.5]} 36... gxf6 {[%clk 0:00:08.6]} 37. Rxf6 {[%clk
0:00:05.9]} 37... Nxc5 {[%clk 0:00:09]} 38. Rxc6 {[%clk 0:00:06.6]} 38... Ne4
{[%clk 0:00:09.4]} 39. Rd7 {[%clk 0:00:06.8]} 39... Rbc8 {[%clk 0:00:04.5]} 40.
Rxc8 {[%clk 0:00:05.8]} 40... Rxc8 {[%clk 0:00:05.4]} 41. Bd3 {[%clk 0:00:06.5]}
41... Nc5 {[%clk 0:00:05.2]} 42. Rxh7+ {[%clk 0:00:05.4]} 42... Kg8 {[%clk
0:00:05.1]} 43. Bf5 {[%clk 0:00:06.1]} 43... Rf8 {[%clk 0:00:04.9]} 44. Rh5
{[%clk 0:00:06.5]} 44... Rb8 {[%clk 0:00:03.5]} 45. Bh7+ {[%clk 0:00:06.3]}
45... Kg7 {[%clk 0:00:03.5]} 46. Rxc5 {[%clk 0:00:07.2]} 46... Kxh7 {[%clk
0:00:04.1]} 47. Rc7+ {[%clk 0:00:07.9]} 47... Kg6 {[%clk 0:00:04.8]} 48. Rxa7
{[%clk 0:00:08.7]} 1-0

[Event "*** Titled Tuesday Blitz"]
[Site "Chess.com"]
[Date "2021.02.16"]
[Round "11"]
[White "korbul"]
[Black "ljuks68"]
[Result "0-1"]
[WhiteElo "2572"]
[BlackElo "2431"]
[TimeControl "180+1"]
[EndTime "12:10:52 PST"]
[Termination "ljuks68 won by checkmate"]

1. d4 {[%clk 0:03:00.9]} 1... d5 {[%clk 0:02:59.5]} 2. Bf4 {[%clk 0:02:59.7]}
2... Nf6 {[%clk 0:02:59.4]} 3. e3 {[%clk 0:02:59.2]} 3... c5 {[%clk 0:02:59.8]}
4. c3 {[%clk 0:02:58.7]} 4... Nc6 {[%clk 0:03:00.2]} 5. Nd2 {[%clk 0:02:58.4]}
5... Bf5 {[%clk 0:02:59.3]} 6. Ngf3 {[%clk 0:02:56.9]} 6... e6 {[%clk
0:02:58.5]} 7. Qb3 {[%clk 0:02:55.9]} 7... Qb6 {[%clk 0:02:55.4]} 8. Qxb6 {[%clk
0:02:40.5]} 8... axb6 {[%clk 0:02:55.1]} 9. Bb5 {[%clk 0:02:40.2]} 9... Nd7
{[%clk 0:02:44.6]} 10. Ne5 {[%clk 0:02:39.3]} 10... Ndxe5 {[%clk 0:02:40.6]} 11.
Bxe5 {[%clk 0:02:38.8]} 11... Rc8 {[%clk 0:02:37.1]} 12. f3 {[%clk 0:02:37.7]}
12... f6 {[%clk 0:02:37.1]} 13. Bg3 {[%clk 0:02:34.4]} 13... Kf7 {[%clk
0:02:30.7]} 14. O-O {[%clk 0:02:22.5]} 14... Bg6 {[%clk 0:02:22.7]} 15. Nb3
{[%clk 0:02:07.5]} 15... Be7 {[%clk 0:02:14.6]} 16. Rfe1 {[%clk 0:01:54.9]}
16... Rhd8 {[%clk 0:02:08.2]} 17. Bf2 {[%clk 0:01:53.9]} 17... e5 {[%clk
0:02:02.7]} 18. Bg3 {[%clk 0:01:43.6]} 18... Bd6 {[%clk 0:02:00.3]} 19. Rf1
{[%clk 0:01:33.9]} 19... c4 {[%clk 0:01:25.4]} 20. Nd2 {[%clk 0:01:32.7]} 20...
Bd3 {[%clk 0:01:25.7]} 21. Rf2 {[%clk 0:01:22.1]} 21... Na7 {[%clk 0:01:25.1]}
22. Ba4 {[%clk 0:01:20.9]} 22... b5 {[%clk 0:01:25.3]} 23. Bd1 {[%clk
0:01:20.7]} 23... b4 {[%clk 0:01:25.7]} 24. dxe5 {[%clk 0:01:13.6]} 24... bxc3
{[%clk 0:01:07.1]} 25. exd6 {[%clk 0:01:11.6]} 25... cxb2 {[%clk 0:01:06.6]} 26.
Rb1 {[%clk 0:01:10.7]} 26... c3 {[%clk 0:01:05.7]} 27. Bb3 {[%clk 0:01:00.1]}
27... Kf8 {[%clk 0:00:47.5]} 28. Bxd5 {[%clk 0:00:31.6]} 28... Bxb1 {[%clk
0:00:46.2]} 29. Nxb1 {[%clk 0:00:10]} 29... c2 {[%clk 0:00:45.8]} 30. Rxc2
{[%clk 0:00:10.6]} 30... Rxc2 {[%clk 0:00:45.2]} 31. Be4 {[%clk 0:00:11.2]}
31... Rc1+ {[%clk 0:00:45.1]} 32. Kf2 {[%clk 0:00:11.8]} 32... Nb5 {[%clk
0:00:41.6]} 33. Bf4 {[%clk 0:00:08.2]} 33... Nc3 {[%clk 0:00:26.8]} 34. Nxc3
{[%clk 0:00:07.2]} 34... Rxc3 {[%clk 0:00:26.9]} 35. Bxh7 {[%clk 0:00:06.2]}
35... Rc1 {[%clk 0:00:26.1]} 36. g4 {[%clk 0:00:06]} 36... b1=Q {[%clk
0:00:26.1]} 37. Bxb1 {[%clk 0:00:05.7]} 37... Rxb1 {[%clk 0:00:26.2]} 38. e4
{[%clk 0:00:06.6]} 38... Rb2+ {[%clk 0:00:25.4]} 39. Ke3 {[%clk 0:00:06.9]}
39... Rxa2 {[%clk 0:00:25.4]} 40. e5 {[%clk 0:00:07.1]} 40... fxe5 {[%clk
0:00:24.3]} 41. Bxe5 {[%clk 0:00:07.4]} 41... b5 {[%clk 0:00:19.1]} 42. f4
{[%clk 0:00:07.7]} 42... b4 {[%clk 0:00:18.9]} 43. Kd3 {[%clk 0:00:08.1]} 43...
b3 {[%clk 0:00:15.9]} 44. Kc3 {[%clk 0:00:08.3]} 44... b2 {[%clk 0:00:12.6]} 45.
Kc2 {[%clk 0:00:08.5]} 45... Rc8+ {[%clk 0:00:12.8]} 46. Kb1 {[%clk 0:00:06.3]}
46... Rc1+ {[%clk 0:00:12.6]} 47. Kxa2 {[%clk 0:00:06.6]} 47... b1=Q+ {[%clk
0:00:12.7]} 48. Ka3 {[%clk 0:00:07.5]} 48... Rc2 {[%clk 0:00:11.5]} 49. d7
{[%clk 0:00:06.4]} 49... Ra2# {[%clk 0:00:11.3]} 0-1

[Event "*** Titled Tuesday Blitz"]
[Site "Chess.com"]
[Date "2021.02.16"]
[Round "11"]
[White "GianmarcoVaR"]
[Black "Grandelicious"]
[Result "0-1"]
[WhiteElo "2677"]
[BlackElo "2885"]
[TimeControl "180+1"]
[EndTime "12:10:53 PST"]
[Termination "Grandelicious won on time"]

1. Nf3 {[%clk 0:02:58.5]} 1... d5 {[%clk 0:02:58.9]} 2. g3 {[%clk 0:02:58.6]}
2... Nd7 {[%clk 0:02:56.6]} 3. Bg2 {[%clk 0:02:52.2]} 3... e5 {[%clk 0:02:56.9]}
4. O-O {[%clk 0:02:52.5]} 4... Ngf6 {[%clk 0:02:54.4]} 5. d3 {[%clk 0:02:48.4]}
5... Bc5 {[%clk 0:02:53.8]} 6. Nc3 {[%clk 0:02:45.8]} 6... O-O {[%clk
0:02:48.3]} 7. e4 {[%clk 0:02:42]} 7... dxe4 {[%clk 0:02:48.8]} 8. dxe4 {[%clk
0:02:37.9]} 8... c6 {[%clk 0:02:48]} 9. Qe2 {[%clk 0:02:36.4]} 9... a5 {[%clk
0:02:47]} 10. Nh4 {[%clk 0:02:33.9]} 10... Re8 {[%clk 0:02:47.1]} 11. Nf5 {[%clk
0:02:31.8]} 11... Nf8 {[%clk 0:02:44.4]} 12. Bg5 {[%clk 0:02:28]} 12... h6
{[%clk 0:02:16.8]} 13. Rad1 {[%clk 0:02:25.1]} 13... Bd7 {[%clk 0:02:16]} 14.
Be3 {[%clk 0:01:58.6]} 14... Bxe3 {[%clk 0:02:01]} 15. Qxe3 {[%clk 0:01:58.2]}
15... Qc7 {[%clk 0:02:00.9]} 16. Nd6 {[%clk 0:01:41.8]} 16... Red8 {[%clk
0:01:59.6]} 17. Qc5 {[%clk 0:01:36.2]} 17... Ne6 {[%clk 0:01:52.6]} 18. Qxe5
{[%clk 0:01:30.7]} 18... Ng4 {[%clk 0:01:37.9]} 19. Qh5 {[%clk 0:01:24.7]} 19...
Ng5 {[%clk 0:01:36.6]} 20. Nf5 {[%clk 0:00:55.2]} 20... Bxf5 {[%clk 0:01:24.3]}
21. exf5 {[%clk 0:00:55.3]} 21... Nf6 {[%clk 0:01:24.3]} 22. Qe2 {[%clk
0:00:52.8]} 22... Re8 {[%clk 0:01:20.9]} 23. Qc4 {[%clk 0:00:52.6]} 23... Qe5
{[%clk 0:01:12.7]} 24. h4 {[%clk 0:00:39.1]} 24... Ngh7 {[%clk 0:01:11.3]} 25.
Bh3 {[%clk 0:00:31.7]} 25... Rad8 {[%clk 0:01:06.5]} 26. a4 {[%clk 0:00:28.5]}
26... Nf8 {[%clk 0:01:03.7]} 27. Rxd8 {[%clk 0:00:28]} 27... Rxd8 {[%clk
0:01:04.6]} 28. Rd1 {[%clk 0:00:18.7]} 28... Rxd1+ {[%clk 0:00:59.3]} 29. Nxd1
{[%clk 0:00:19.6]} 29... N8d7 {[%clk 0:00:52.9]} 30. Ne3 {[%clk 0:00:18.4]}
30... Qxb2 {[%clk 0:00:52.8]} 31. Qb3 {[%clk 0:00:13.8]} 31... Qxb3 {[%clk
0:00:51.2]} 32. cxb3 {[%clk 0:00:14]} 32... Nc5 {[%clk 0:00:52.1]} 33. Nc4
{[%clk 0:00:07.9]} 33... Nxb3 {[%clk 0:00:52.3]} 34. Bg2 {[%clk 0:00:07.2]}
34... Nd7 {[%clk 0:00:48.5]} 35. Nd6 {[%clk 0:00:06.8]} 35... Ndc5 {[%clk
0:00:43.3]} 36. Bf1 {[%clk 0:00:06.8]} 36... Nd2 {[%clk 0:00:39.6]} 37. Bc4
{[%clk 0:00:02.5]} 37... Kf8 {[%clk 0:00:24.9]} 38. Ba2 {[%clk 0:00:01.7]} 38...
Nxa4 {[%clk 0:00:23.2]} 39. Nxb7 {[%clk 0:00:02]} 39... Nc3 {[%clk 0:00:22.5]}
40. Bxf7 {[%clk 0:00:01.1]} 40... a4 {[%clk 0:00:21.7]} 41. Na5 {[%clk 0:00:02]}
41... Kxf7 {[%clk 0:00:21.4]} 42. Nxc6 {[%clk 0:00:02.2]} 42... a3 {[%clk
0:00:20.4]} 43. Nb4 {[%clk 0:00:02.2]} 43... Nd5 {[%clk 0:00:19.1]} 44. Na2
{[%clk 0:00:02]} 44... Ne4 {[%clk 0:00:18.9]} 45. Kg2 {[%clk 0:00:01.9]} 45...
Nec3 {[%clk 0:00:19.3]} 46. Nc1 {[%clk 0:00:01.7]} 46... Kf6 {[%clk 0:00:19.3]}
47. g4 {[%clk 0:00:01.7]} 47... Ke5 {[%clk 0:00:18.9]} 48. Kg3 {[%clk
0:00:01.8]} 48... Ne2+ {[%clk 0:00:19]} 49. Nxe2 {[%clk 0:00:01.8]} 49... a2
{[%clk 0:00:19.5]} 50. f4+ {[%clk 0:00:02.7]} 50... Ke4 {[%clk 0:00:17.3]} 0-1

[Event "*** Titled Tuesday Blitz"]
[Site "Chess.com"]
[Date "2021.02.16"]
[Round "11"]
[White "azikom"]
[Black "AlexTriapishko"]
[Result "0-1"]
[WhiteElo "2653"]
[BlackElo "2830"]
[TimeControl "180+1"]
[EndTime "12:10:53 PST"]
[Termination "AlexTriapishko won on time"]

1. d4 {[%clk 0:03:00]} 1... d6 {[%clk 0:02:55.2]} 2. Nf3 {[%clk 0:02:59.4]} 2...
Nf6 {[%clk 0:02:55.1]} 3. g3 {[%clk 0:02:57]} 3... g6 {[%clk 0:02:47.7]} 4. Bg2
{[%clk 0:02:57.5]} 4... Bg7 {[%clk 0:02:48.6]} 5. O-O {[%clk 0:02:57.9]} 5...
O-O {[%clk 0:02:49.5]} 6. Nc3 {[%clk 0:02:57.3]} 6... Nbd7 {[%clk 0:02:48.6]} 7.
a4 {[%clk 0:02:56.3]} 7... a5 {[%clk 0:02:47.7]} 8. e4 {[%clk 0:02:55.6]} 8...
e5 {[%clk 0:02:47.2]} 9. dxe5 {[%clk 0:02:53.5]} 9... dxe5 {[%clk 0:02:48.1]}
10. Re1 {[%clk 0:02:52.6]} 10... c6 {[%clk 0:02:42.6]} 11. b3 {[%clk 0:02:52.2]}
11... Qe7 {[%clk 0:02:35.9]} 12. Ba3 {[%clk 0:02:51.6]} 12... Nc5 {[%clk
0:02:36]} 13. Qe2 {[%clk 0:02:47.9]} 13... Rd8 {[%clk 0:02:31.5]} 14. Qe3 {[%clk
0:02:40.8]} 14... Bf8 {[%clk 0:02:23.2]} 15. Rad1 {[%clk 0:02:38.5]} 15... Bg4
{[%clk 0:02:21.5]} 16. h3 {[%clk 0:02:37.3]} 16... Bxf3 {[%clk 0:02:19.6]} 17.
Bxf3 {[%clk 0:02:32.1]} 17... b6 {[%clk 0:02:14.9]} 18. Be2 {[%clk 0:02:25.3]}
18... h5 {[%clk 0:02:06]} 19. Kg2 {[%clk 0:02:22.6]} 19... Kh7 {[%clk
0:01:52.4]} 20. Bc4 {[%clk 0:02:21.4]} 20... Qe8 {[%clk 0:01:45.8]} 21. Qf3
{[%clk 0:02:14]} 21... Kg7 {[%clk 0:01:29.4]} 22. Bb2 {[%clk 0:01:56.6]} 22...
Ne6 {[%clk 0:01:19.9]} 23. Nd5 {[%clk 0:01:18.5]} 23... Nd7 {[%clk 0:01:01.5]}
24. Ne3 {[%clk 0:00:59.7]} 24... Nd4 {[%clk 0:00:54.7]} 25. Bxd4 {[%clk
0:00:40]} 25... exd4 {[%clk 0:00:55.6]} 26. Rxd4 {[%clk 0:00:31.2]} 26... Ne5
{[%clk 0:00:55]} 27. Qd1 {[%clk 0:00:31]} 27... Bb4 {[%clk 0:00:45.1]} 28. Re2
{[%clk 0:00:23.3]} 28... Bc3 {[%clk 0:00:41.6]} 29. Rxd8 {[%clk 0:00:21.4]}
29... Rxd8 {[%clk 0:00:42.5]} 30. Qf1 {[%clk 0:00:20]} 30... Rd2 {[%clk
0:00:24.3]} 31. Rxd2 {[%clk 0:00:14.4]} 31... Bxd2 {[%clk 0:00:25.2]} 32. Qe2
{[%clk 0:00:10.7]} 32... Bxe3 {[%clk 0:00:12.7]} 33. Qxe3 {[%clk 0:00:10.7]}
33... b5 {[%clk 0:00:13.1]} 34. Be2 {[%clk 0:00:09.2]} 34... bxa4 {[%clk
0:00:12.4]} 35. bxa4 {[%clk 0:00:09.4]} 35... Kg8 {[%clk 0:00:08.8]} 36. Qc3
{[%clk 0:00:08.8]} 36... Qe7 {[%clk 0:00:05.7]} 37. h4 {[%clk 0:00:07.9]} 37...
Nd7 {[%clk 0:00:04.1]} 38. Qd4 {[%clk 0:00:07.7]} 38... Nc5 {[%clk 0:00:04.1]}
39. Bf3 {[%clk 0:00:07.2]} 39... Ne6 {[%clk 0:00:03.6]} 40. Qe5 {[%clk
0:00:06.4]} 40... Qb4 {[%clk 0:00:03.5]} 41. Qb8+ {[%clk 0:00:06.3]} 41... Qxb8
{[%clk 0:00:03.3]} 0-1